Cogmind - Beta 13 @@@ ROGUE MODE // 2024.05.28 @ 23:45:05 Player: DuckBoy Result: Destroyed by S-27 Virus with Autogun Performance ------------- Evolutions (3) 1500 Regions Visited (14) 2800 Robots Destroyed (131) 655 Value Destroyed (3766) 3766 Prototype IDs (26) 520 Alien Tech Used (0) 0 Bonus (3180) 3180 TOTAL SCORE: 12421 Bonus ------- High Alert Combat Kills 244 Follower Combat Kills 2198 Entered Garrisons 200 Used RIF Installer 500 Aligned with FarCom 300 Friendly Fire -262 Cogmind --------- Core Integrity 0/700 Matter 300/300 Energy 100/100 System Corruption 0% Temperature Cool (1) Movement Flying (35) Location -6/Proximity Caves Parts ------- > --- POWER (1) -------- (None) > --- PROPULSION (3) --- VTOL Module > --- UTILITY (7) ------ Hacking Suite Hacking Suite System Shield System Shield > --- WEAPON (2) ------- (None) > --- INVENTORY (5) ---- Improved Cooling System Large Storage Unit Transmission Jammer Propulsion Shielding Peak State ------------ > --- POWER ------------ Reinforced Deuterium Engine > --- PROPULSION ------- Light Treads Wheel > --- UTILITY ---------- Army-in-a-Box > --- WEAPON ----------- Heavy Plasma Cannon Great Axe > --- INVENTORY -------- Medium Storage Unit Hacking Suite Beam Rifle Ion Cannon Long-range Missile Launcher [Rating: 70] Favorites ----------- Power Micro Nuclear Core Engine Ion Engine Power Core Micro Nuclear Core Propulsion Gravmag System Treads Light Treads Leg Carbon-fiber Leg Wheel Wheel Hover Unit Gravmag System Flight Unit VTOL Module Utility Hacking Suite Device Improved Heat Sink Storage Large Storage Unit Processor Advanced Visual Processing Unit Hackware Hacking Suite Protection Medium Reactive Plating Weapon Great Axe Energy Gun Beam Rifle Energy Cannon Ion Cannon Ballistic Gun Gauss Rifle Launcher Grenade Launcher Special Weapon Improved Remote Datajack Impact Weapon Powered Hammer Slashing Weapon Great Axe Build | -11 -10 -10 -10 -9 -8 -8 -8 -7 -7 -7 -7 -7 -7 -6 ------- Run | Yrd Mat Min Exi Min Mat Gar Mat Fac Was Fac Low Low Zio Pro Slots Evolved 6 | . . . . . 4 . . 2 . . . . . . Power . | . . . . . . . . . . . . . . . Propulsion 1 | . . . . . . . . 1 . . . . . . Utility 5 | . . . . . 4 . . 1 . . . . . . Weapon . | . . . . . . . . . . . . . . . Parts Attached 159 | 8 12 1 4 . 22 16 . 74 3 4 8 4 . 3 Power 8 | 1 1 . 1 . 1 2 . 1 . . 1 . . . Engine 5 | 1 1 . 1 . 1 1 . . . . . . . . Core 3 | . . . . . . 1 . 1 . . 1 . . . Reactor . | . . . . . . . . . . . . . . . Propulsion 40 | 2 6 . 3 . 3 4 . 17 . 1 3 . . 1 Treads 9 | 2 3 . 1 . 1 1 . . . . 1 . . . Leg 1 | . . . . . . . . . . . 1 . . . Wheel 9 | . 3 . 2 . 2 . . 2 . . . . . . Hover 20 | . . . . . . 3 . 15 . 1 1 . . . Flight 1 | . . . . . . . . . . . . . . 1 Utility 67 | 3 2 . . . 9 7 . 37 2 2 1 3 . 1 Device 25 | 2 . . . . 2 3 . 13 1 1 . 2 . 1 Storage 8 | 1 2 . . . . 3 . 2 . . . . . . Processor 1 | . . . . . . . . 1 . . . . . . Hackware 28 | . . . . . 4 1 . 20 1 1 . 1 . . Protection 5 | . . . . . 3 . . 1 . . 1 . . . Artifact . | . . . . . . . . . . . . . . . Weapon 44 | 2 3 1 . . 9 3 . 19 1 1 3 1 . 1 Energy Gun 17 | 2 3 . . . 5 1 . 4 . . 1 1 . . Energy Cannon 4 | . . . . . . 2 . 1 . . 1 . . . Ballistic Gun 2 | . . . . . . . . 2 . . . . . . Ballistic Cannon . | . . . . . . . . . . . . . . . Launcher 7 | . . 1 . . 3 . . 3 . . . . . . Special Weapon 3 | . . . . . . . . 2 1 . . . . . Impact Weapon 3 | . . . . . . . . 2 . 1 . . . . Slashing Weapon 8 | . . . . . 1 . . 5 . . 1 . . 1 Piercing Weapon . | . . . . . . . . . . . . . . . Special Melee Weapon . | . . . . . . . . . . . . . . . Unidentified Prototypes 2 | . . . . . . . . 1 . . 1 . . . Parts Lost 34 | . 3 . . . 8 . . 10 . 2 6 1 . 4 Power 4 | . 1 . . . 2 . . . . . 1 . . . Propulsion 13 | . 1 . . . 1 . . 4 . 1 5 1 . . Utility 10 | . . . . . 3 . . 4 . . . . . 3 Weapon 7 | . 1 . . . 2 . . 2 . 1 . . . 1 Highest Loss Streak 4 | . 1 . . . 2 . . 3 . 2 2 1 . 4 To Critical Strikes . | . . . . . . . . . . . . . . . Average Slot Usage (%) 86 | . 99 100 100 100 85 48 90 92 90 88 99 62 53 47 Engine 3 | . 14 14 14 14 7 1 . . . . . . . . Core 4 | . . . . . . 2 9 7 7 7 6 3 . . Treads 5 | . 26 28 17 . 2 4 . . . . 4 3 . . Wheel 3 | . 1 . 10 28 15 6 . . . . . . . . Hover 11 | . . . . . . 4 18 20 23 22 10 . . . Device 12 | . 14 14 14 14 7 10 18 17 6 . 5 3 7 4 Storage 9 | . 14 14 14 14 9 3 18 10 7 7 7 3 . . Hackware 13 | . . . . . 15 1 9 14 37 40 38 41 46 40 Protection 2 | . . . . . 11 . . 3 . . 1 3 . . Energy Gun 7 | . 27 26 14 14 16 . . 1 . . 1 . . . Energy Cannon 1 | . . . . . . 3 9 1 . . 6 3 . . Ballistic Gun 1 | . . . . . . . . 3 . . . . . . Impact Weapon 1 | . . . . . . . . 2 . 1 . . . . Slashing Weapon 3 | . . . . . . 9 9 3 . . 5 . . . Naked Turns . | . . . . . . . . . . . . . . . Heaviest Build 109 | 15 32 32 32 32 38 109 48 70 31 34 44 44 1 5 Greatest Support 40 | 40 40 40 40 26 32 18 18 28 27 27 29 20 3 4 Greatest Overweight (x) 10 | 4 2 . 1 1 3 10 2 6 1 1 2 2 . 1 Average Overweight (x) 1 | . . . . 1 1 5 2 1 . 1 1 . . . Largest Inventory Capacity 15 | 8 15 15 15 15 15 15 15 15 15 15 15 15 5 5 Average Capacity 13 | 7 14 15 15 15 15 7 15 15 15 15 15 9 5 5 Most Carried 15 | 8 13 14 15 15 15 15 15 15 15 15 13 12 5 5 Average Carried 12 | 5 8 13 14 15 14 6 15 13 14 14 11 7 5 4 Final Capacity 15 | 8 15 15 15 15 15 15 15 15 15 15 15 5 5 5 Final Carried 15 | 8 13 14 15 15 14 15 15 15 15 13 11 5 5 4 Class Distribution -------------------- 31% | Scavenger-Mutant 28% | Mutant 17% | Hacker-Mutant 12% | Commander-Mutant 5% | Hacker-Skirmisher Dominant Class ---------------- Mutant | -10/Materials Mutant | -10/Mines Mutant | -10/Exiles Skirmisher | -9/Mines Hacker-Skirmisher | -8/Materials Mutant | -8/Garrison Scavenger-Mutant | -8/Materials Scavenger-Mutant | -7/Factory Hacker-Mutant | -7/Waste Hacker-Mutant | -7/Factory Hacker-Mutant | -7/Lower Caves Hacker-Mutant | -7/Lower Caves Wizard-Mutant | -7/Zion Hacker-Mutant | -6/Proximity Caves Resources | -11 -10 -10 -10 -9 -8 -8 -8 -7 -7 -7 -7 -7 -7 -6 ----------- Run | Yrd Mat Min Exi Min Mat Gar Mat Fac Was Fac Low Low Zio Pro Matter Collected 2606 | 266 99 35 . 92 393 186 . 1110 . 199 126 75 . 25 Remotely . | . . . . . . . . . . . . . . . Salvage Created 4074 | 108 819 171 . 113 1177 139 . 971 . 60 383 50 . 83 Parts 262 | 8 54 15 . 12 70 10 . 69 . 1 17 . . 6 Haulers Intercepted 1 | . 1 . . . . . . . . . . . . . Recyclers Shooed 5 | . 4 . . . 1 . . . . . . . . . Parts Field Recycled . | . . . . . . . . . . . . . . . Retrieved Matter . | . . . . . . . . . . . . . . . Parts Self-Destructed 33 | . . . . . . . . . . . 15 9 . 9 Prevented 8 | . . . . . . . . . . . 4 . . 4 Kills | -11 -10 -10 -10 -9 -8 -8 -8 -7 -7 -7 -7 -7 -7 -6 ------- Run | Yrd Mat Min Exi Min Mat Gar Mat Fac Was Fac Low Low Zio Pro Combat Hostiles Destroyed 89 | . 17 8 . 6 24 3 . 19 . 1 7 1 . 3 Melee 25 | . 2 . . . 2 1 . 12 . 1 4 . . 3 Guns 30 | . 15 7 . . 8 . . . . . . . . . Cannons 7 | . . . . . . 1 . 2 . . 3 1 . . AOE 26 | . . 1 . 6 14 . . 5 . . . . . . Classes Destroyed 13 | 2 7 . . . 1 1 . 1 . . 1 . . . Worker 12 | . 2 . . . 7 . . 3 . . . . . . Builder 6 | . 1 1 . . 2 . . 2 . . . . . . Tunneler 3 | 2 . 1 . . . . . . . . . . . . Hauler 1 | . 1 . . . . . . . . . . . . . Recycler 5 | 1 2 . . . 2 . . . . . . . . . Operator 11 | . 4 . . . 3 . . 4 . . . . . . Watcher 6 | . 3 . . . 2 . . 1 . . . . . . Swarmer 30 | . 8 6 . 3 6 . . 4 . . . . . 3 Grunt 34 | . 9 2 . 3 13 . . 2 . . 5 . . . Brawler 1 | . . . . . . . . . . . 1 . . . Sentry 9 | . . . . . 5 . . 3 . . 1 . . . Programmer 12 | . . . . . . 3 . 8 . 1 . . . . Assembled 2 | . . . . . . . . 2 . . . . . . Thug 1 | . . . . . . . . . . . . 1 . . Best Kill Streak 10 | 2 5 4 . 3 10 2 . 4 . 1 3 1 . 3 Combat Bots Only 6 | . 5 3 . 3 6 2 . 4 . 1 3 1 . 3 Max Kills in Single Turn 6 | 1 1 2 . 3 6 1 . 4 . 1 1 1 . 1 Gunslinging . | . . . . . . . . . . . . . . . Exploded 4 | . . 1 . 3 3 . . 4 . . . . . . Melee 1 | . 1 . . . 1 1 . 1 . 1 1 . . 1 Uniques/NPCs Destroyed . | . . . . . . . . . . . . . . . Combat | -11 -10 -10 -10 -9 -8 -8 -8 -7 -7 -7 -7 -7 -7 -6 -------- Run | Yrd Mat Min Exi Min Mat Gar Mat Fac Was Fac Low Low Zio Pro Hostile Shots Fired 596 | . 73 28 . 4 102 26 12 187 . 24 96 19 . 25 Missed 188 | . 18 6 . 2 27 4 3 77 . 9 30 7 . 5 Damage Taken 5542 | . 608 224 . 36 1187 338 173 1380 . 221 788 281 . 306 Core 1329 | . 64 49 . . 402 61 48 237 . 31 146 129 . 162 Absorbed by Shields . | . . . . . . . . . . . . . . . Redirected to Shielding 155 | . . . . . 155 . . . . . . . . . Ignored by Resistances 60 | . . . . . . . . 60 . . . . . . Regen/Repaired (Parts) 246 | . . . . . 65 . . 181 . . . . . . Core Remaining (%) 53 | 100 . . . 54 . . 7 . . . . . . . Volleys Fired 262 | 7 77 17 . 4 76 8 . 42 7 5 13 6 . . Largest 2 | 2 2 2 . 1 2 1 . 2 1 1 2 2 . . Hottest 155 | 100 100 112 . 30 112 90 . 110 7 7 95 155 . . Shots Fired 428 | 14 150 30 . 4 128 8 . 56 7 5 17 9 . . Gun 341 | 14 150 26 . . 110 . . 32 . . 6 3 . . Cannon 41 | . . . . . . 8 . 16 . . 11 6 . . Launcher 28 | . . 4 . 4 18 . . 2 . . . . . . Special 18 | . . . . . . . . 6 7 5 . . . . Kinetic 24 | . . . . . . . . 24 . . . . . . Thermal 341 | 14 150 26 . . 110 8 . 16 . . 11 6 . . Explosive 28 | . . 4 . 4 18 . . 2 . . . . . . Electromagnetic 17 | . . . . . . . . 8 . . 6 3 . . Robot Hit Streak 19 | 8 12 7 . 3 19 5 . 10 3 3 8 9 . . Robot Miss Streak 5 | 2 5 3 . 1 4 2 . 1 2 1 3 1 . . Penetration Max . | . . . . . . . . . . . . . . . Secondary Targets 6 | . 4 1 . . 1 . . . . . . . . . Max Gunslinging Chain 1 | . 1 1 . . 1 . . . . . . . . . Shots Hit Robots 331 | 10 87 17 . 3 98 12 . 62 4 7 20 7 . 4 Core Hits 194 | 4 43 16 . 7 75 4 . 30 . 1 9 2 . 3 Critical Kills 2 | . . . . . . 1 . 1 . . . . . . Critical Parts Destroyed . | . . . . . . . . . . . . . . . Critical Strikes 25 | . 9 1 . . 12 1 . 2 . . . . . . Burn 20 | . 9 1 . . 10 . . . . . . . . . Meltdown 1 | . . . . . . 1 . . . . . . . . Smash 1 | . . . . . . . . 1 . . . . . . Sever 3 | . . . . . 2 . . 1 . . . . . . Melee Attacks 137 | . . . . . 19 27 7 66 . 5 8 . . 5 Impact 25 | . . . . . . . . 20 . 5 . . . . Slashing 112 | . . . . . 19 27 7 46 . . 8 . . 5 Piercing . | . . . . . . . . . . . . . . . Sneak Attacks 5 | . . . . . 1 . . 4 . . . . . . Combat Hostiles . | . . . . . . . . . . . . . . . Follow-up Attacks . | . . . . . . . . . . . . . . . Damage Inflicted 9305 | 125 1238 344 . 295 3191 567 . 2158 . 90 814 315 . 168 Guns 3101 | 125 1115 231 . . 1186 . . 301 . . 100 43 . . Cannons 1152 | . . . . . . 200 . 276 . . 404 272 . . Explosions 2342 | . 110 88 . 295 1495 . . 354 . . . . . . Melee 2672 | . . . . . 510 367 . 1227 . 90 310 . . 168 Ramming 38 | . 13 25 . . . . . . . . . . . . Kinetic 154 | . . . . . . . . 154 . . . . . . Thermal 3809 | 125 1115 231 . . 1186 200 . 276 . . 404 272 . . Explosive 2342 | . 110 88 . 295 1495 . . 354 . . . . . . Electromagnetic 290 | . . . . . . . . 147 . . 100 43 . . Impact 532 | . . . . . . . . 442 . 90 . . . . Slashing 2140 | . . . . . 510 367 . 785 . . 310 . . 168 Piercing . | . . . . . . . . . . . . . . . Highest Corruption 14 | . . . . . . 4 4 8 14 13 13 13 13 . Average Corruption 7 | . . . . . . 3 4 6 8 13 13 13 13 . Corruption Purged 14 | . . . . . . . . 13 1 . . . . . Corruption Blocked . | . . . . . . . . . . . . . . . Effects 186 | . . . . . . 12 6 99 5 18 34 12 . . Message Errors 33 | . . . . . . 2 2 14 . 4 10 1 . . Matter Fused 55 | . . . . . . 4 1 30 2 4 9 5 . . Heat Flow Errors 24 | . . . . . . 2 . 11 1 4 5 1 . . Energy Discharges 26 | . . . . . . 1 2 13 2 2 5 1 . . Parts Rejected 2 | . . . . . . . . 1 . . . 1 . . Data Loss (minor) 20 | . . . . . . 2 . 15 . . 2 1 . . Data Loss (major) 13 | . . . . . . 1 1 7 . 1 2 1 . . Misfires 5 | . . . . . . . . 4 . . 1 . . . Alerts 7 | . . . . . . . . 4 . 3 . . . . Misdirections 1 | . . . . . . . . . . . . 1 . . Overload Shots 12 | . . . . . . . . . . . 6 6 . . Overflow Damage 340 | . . . . . 56 111 . 170 . 3 . . . . Projectiles 25 | . . . . . . 25 . . . . . . . . Explosions 13 | . . . . . 13 . . . . . . . . . Melee 302 | . . . . . 43 86 . 170 . 3 . . . . Knockbacks 4 | . . . . . . . . 3 . 1 . . . . Impact 3 | . . . . . . . . 2 . 1 . . . . Kinetic . | . . . . . . . . . . . . . . . Secondary 1 | . . . . . . . . 1 . . . . . . Self-Inflicted Damage 172 | . 91 15 . 20 46 . . . . . . . . . Shots 5 | . 1 1 . 1 2 . . . . . . . . . Rammed 6 | . 3 3 . . . . . . . . . . . . Targets Rammed 9 | . 5 4 . . . . . . . . . . . . Kicked . | . . . . . . . . . . . . . . . Crushed 3 | . 2 1 . . . . . . . . . . . . Highest Temperature 333 | 117 333 305 . 1 303 288 . 236 222 248 258 271 . . Average Temperature 97 | 49 114 128 . 1 65 123 . 72 116 117 87 111 . . Received Heat Transfer 1542 | . 138 57 . 6 549 . 81 228 . 54 375 54 . . Effects 3 | . 1 1 . . . . . 1 . . . . . . Energy Bleed 1 | . . . . . . . . 1 . . . . . . Interference 1 | . 1 . . . . . . . . . . . . . Damage (minor) 1 | . . 1 . . . . . . . . . . . . Siege Activations . | . . . . . . . . . . . . . . . Robots Corrupted . | . . . . . . . . . . . . . . . Combat Hostiles . | . . . . . . . . . . . . . . . Parts Fried 4 | . . . . . . . . 4 . . . . . . Impact Corruptions 7 | . . . . . . . . 6 . 1 . . . . Robots Melted 1 | . . . . . . 1 . . . . . . . . Combat Hostiles 1 | . . . . . . 1 . . . . . . . . Parts Melted 23 | . 4 5 . . 11 2 . 1 . . . . . . Heat Transferred 10047 | 370 3959 666 . . 3774 173 . 444 . . 411 250 . . Parts Sabotaged . | . . . . . . . . . . . . . . . Parts Stolen . | . . . . . . . . . . . . . . . Parts Stripped . | . . . . . . . . . . . . . . . Power Chain Reactions . | . . . . . . . . . . . . . . . Alert | -11 -10 -10 -10 -9 -8 -8 -8 -7 -7 -7 -7 -7 -7 -6 ------- Run | Yrd Mat Min Exi Min Mat Gar Mat Fac Was Fac Low Low Zio Pro Peak Influence 1628 | 15 422 217 . 178 459 1628 793 601 42 349 . . . . Initial 793 | . 9 1 . . 68 260 793 301 34 15 . . . . Average 376 | 5 168 44 . 102 215 1205 651 297 27 155 . . . . Maximum Alert Level 5 | . 2 1 . . 2 5 3 2 . 1 . . . . Low Security (%) 42 | 100 63 94 . 100 46 . . 35 100 79 . . . . Level 1 25 | . 29 5 . . 46 17 . 29 . 20 . . . . Level 2 19 | . 6 . . . 6 1 95 34 . . . . . . Level 3 1 | . . . . . . 8 4 . . . . . . . Level 4 7 | . . . . . . 53 . . . . . . . . Level 5 2 | . . . . . . 19 . . . . . . . . High Security . | . . . . . . . . . . . . . . . Max Security . | . . . . . . . . . . . . . . . Squads Dispatched 28 | . 6 . . . 7 . 1 10 . 4 . . . . Investigation 7 | . 2 . . . 2 . 1 2 . . . . . . Extermination 7 | . . . . . . . . 6 . 1 . . . . Reinforcement 12 | . 4 . . . 5 . . 2 . 1 . . . . Assault 1 | . . . . . . . . . . 1 . . . . Garrison 1 | . . . . . . . . . . 1 . . . . Intercept . | . . . . . . . . . . . . . . . Searches Triggered . | . . . . . . . . . . . . . . . Construction Impeded 1 | . . . . . 1 . . . . . . . . . Haulers Reinforced . | . . . . . . . . . . . . . . . Active Scanning Responses . | . . . . . . . . . . . . . . . Cargo Convoy Interrupts . | . . . . . . . . . . . . . . . Stealth | -11 -10 -10 -10 -9 -8 -8 -8 -7 -7 -7 -7 -7 -7 -6 --------- Run | Yrd Mat Min Exi Min Mat Gar Mat Fac Was Fac Low Low Zio Pro Distress Signals 7 | . 1 . . . 1 . . 2 . 3 . . . . Communications Jammed . | . . . . . . . . . . . . . . . Distress Signals . | . . . . . . . . . . . . . . . Times Spotted 197 | . 34 8 . 4 34 28 3 40 7 10 14 11 . 4 Peak Tracking Total 8 | . 5 3 . 3 8 4 3 4 3 4 4 7 . 4 Tactical Retreats 11 | . 1 . . . 2 1 . 3 . . 1 3 . . Traps | -11 -10 -10 -10 -9 -8 -8 -8 -7 -7 -7 -7 -7 -7 -6 ------- Run | Yrd Mat Min Exi Min Mat Gar Mat Fac Was Fac Low Low Zio Pro Traps Triggered 14 | . 2 . . . . 2 2 8 . . . . . . Indirectly . | . . . . . . . . . . . . . . . Trap Hack Attempts . | . . . . . . . . . . . . . . . Triggered . | . . . . . . . . . . . . . . . Disarmed . | . . . . . . . . . . . . . . . Reprogrammed . | . . . . . . . . . . . . . . . Reused . | . . . . . . . . . . . . . . . Traps Extracted . | . . . . . . . . . . . . . . . Installed . | . . . . . . . . . . . . . . . Triggered 2 | . . . . . . . . . . . . . . 2 Machines | -11 -10 -10 -10 -9 -8 -8 -8 -7 -7 -7 -7 -7 -7 -6 ---------- Run | Yrd Mat Min Exi Min Mat Gar Mat Fac Was Fac Low Low Zio Pro Machines Disabled 11 | . 1 . . . 1 . 1 6 . 2 . . . . Max in Single Turn 1 | . 1 . . . 1 . 1 1 . 1 . . . . Garrison Access 3 | . . . . . . . . 2 . 1 . . . . Machines Repaired . | . . . . . . . . . . . . . . . Machines Dismantled . | . . . . . . . . . . . . . . . Machines Sabotaged . | . . . . . . . . . . . . . . . Overloaded Fab Kills . | . . . . . . . . . . . . . . . Hacking | -11 -10 -10 -10 -9 -8 -8 -8 -7 -7 -7 -7 -7 -7 -6 --------- Run | Yrd Mat Min Exi Min Mat Gar Mat Fac Was Fac Low Low Zio Pro Machines Accessed 49 | . 3 . 2 . 10 1 3 26 . 3 . 1 . . Terminals 25 | . 3 . . . 7 1 1 11 . 2 . . . . Fabricators 5 | . . . . . . . . 5 . . . . . . Repair Stations 3 | . . . . . 1 . . 2 . . . . . . Recycling Units 7 | . . . . . . . 1 5 . 1 . . . . Scanalyzers 2 | . . . . . 1 . 1 . . . . . . . Garrison Access 4 | . . . . . 1 . . 3 . . . . . . Total Hacks 159 | . 7 . 2 . 32 2 9 97 . 9 . 1 . . Successful 101 | . 3 . 2 . 17 1 6 66 . 5 . 1 . . Failed 58 | . 4 . . . 15 1 3 31 . 4 . . . . Catastrophic 9 | . . . . . 3 . . 6 . . . . . . Database Lockouts . | . . . . . . . . . . . . . . . Manual 77 | . 7 . 1 . 18 . 3 42 . 6 . . . . Terminals 72 | . 7 . . . 24 2 2 32 . 5 . . . . Fabricators 32 | . . . . . . . . 32 . . . . . . Repair Stations 9 | . . . . . 3 . . 6 . . . . . . Recycling Units 24 | . . . . . . . 3 17 . 4 . . . . Scanalyzers 8 | . . . . . 4 . 4 . . . . . . . Garrison Access 11 | . . . . . 1 . . 10 . . . . . . Terminal Hacks 26 | . 1 . 2 . 8 1 1 10 . 2 . 1 . . Record 1 | . . . 1 . . . . . . . . . . . Part Schematic 1 | . . . . . . . . . . 1 . . . . Robot Schematic 6 | . . . . . 2 . . 4 . . . . . . Robot Analysis 2 | . . . . . . . . 2 . . . . . . Open Door 1 | . . . . . . . . . . . . 1 . . Open DSF 2 | . . . . . . . . 1 . 1 . . . . Emergency Access Points 1 | . . . . . . 1 . . . . . . . . Terminal Index 2 | . . . . . 1 . . 1 . . . . . . Alert Level 2 | . . . . . 2 . . . . . . . . . Unreport Threat 6 | . 1 . . . 2 . 1 2 . . . . . . Recall Reinforcements 1 | . . . . . 1 . . . . . . . . . Derelict Proto ID Bank 1 | . . . 1 . . . . . . . . . . . Fabricator Hacks 27 | . . . . . . . . 27 . . . . . . Network Status 1 | . . . . . . . . 1 . . . . . . Load Schematic 13 | . . . . . . . . 13 . . . . . . Build 13 | . . . . . . . . 13 . . . . . . Repair Station Hacks 5 | . . . . . 3 . . 2 . . . . . . Scan Component 2 | . . . . . 1 . . 1 . . . . . . Repair 2 | . . . . . 1 . . 1 . . . . . . Refit 1 | . . . . . 1 . . . . . . . . . Recycling Unit Hacks 3 | . . . . . . . . 3 . . . . . . Retrieve Components 3 | . . . . . . . . 3 . . . . . . Scanalyzer 5 | . . . . . 2 . 3 . . . . . . . Insert Component 2 | . . . . . 1 . 1 . . . . . . . Analyze 3 | . . . . . 1 . 2 . . . . . . . Garrison Access Hacks 6 | . . . . . 1 . . 5 . . . . . . Unlock Access 1 | . . . . . 1 . . . . . . . . . Seal Access 2 | . . . . . . . . 2 . . . . . . Coupler Status 3 | . . . . . . . . 3 . . . . . . Unauthorized Hacks 29 | . 2 . . . 3 . 2 19 . 3 . . . . Terminals 9 | . 2 . . . 2 . . 5 . . . . . . Assimilate 1 | . . . . . . . . 1 . . . . . . Botnet 5 | . 1 . . . 2 . . 2 . . . . . . Operators 3 | . 1 . . . . . . 2 . . . . . . Fabricators 2 | . . . . . . . . 2 . . . . . . Liberate 1 | . . . . . . . . 1 . . . . . . Fabnet 1 | . . . . . . . . 1 . . . . . . Repair Stations . | . . . . . . . . . . . . . . . Recycling Units 14 | . . . . . . . 2 9 . 3 . . . . Monitor 1 | . . . . . . . . 1 . . . . . . Reject 4 | . . . . . . . . 3 . 1 . . . . Recyclers 3 | . . . . . . . 1 1 . 1 . . . . Mask 6 | . . . . . . . 1 4 . 1 . . . . Scanalyzers 1 | . . . . . 1 . . . . . . . . . Extract 1 | . . . . . 1 . . . . . . . . . Garrison Access 3 | . . . . . . . . 3 . . . . . . Broadcast 1 | . . . . . . . . 1 . . . . . . Restock 1 | . . . . . . . . 1 . . . . . . Watchers 1 | . . . . . . . . 1 . . . . . . Data Cores Recovered 2 | . . . . . . . . 2 . . . . . . Used 1 | . . . . . . . . 1 . . . . . . Hacking Detections 39 | . 3 . . . 9 1 3 21 . 2 . . . . Full Trace Events 3 | . . . . . 1 . . 2 . . . . . . Feedback Events 1 | . . . . . . . . 1 . . . . . . Hackware Fried 1 | . . . . . . . . 1 . . . . . . Feedback Blocked . | . . . . . . . . . . . . . . . Robot Schematics Acquired 6 | . . . . . 2 . . 4 . . . . . . Robots Built 26 | . . . . . . . . 26 . . . . . . Authchips 13 | . . . . . . . . 13 . . . . . . Time 797 | . . . . . . . . 797 . . . . . . Total Robot Build Rating 72 | . . . . . . . . 72 . . . . . . Part Schematics Acquired 3 | . . . . . 2 . . . . 1 . . . . Parts Built . | . . . . . . . . . . . . . . . Authchips . | . . . . . . . . . . . . . . . Time . | . . . . . . . . . . . . . . . Total Part Build Rating . | . . . . . . . . . . . . . . . Parts Repaired 2 | . . . . . 1 . . 1 . . . . . . Time 76 | . . . . . 32 . . 44 . . . . . . Parts Recycled . | . . . . . . . . . . . . . . . Recycled Matter . | . . . . . . . . . . . . . . . Retrieved Matter . | . . . . . . . . . . . . . . . Retrieved Components 15 | . . . . . . . . 15 . . . . . . Parts Scanalyzed 2 | . . . . . 1 . 1 . . . . . . . Part Schematics Acquired 1 | . . . . . 1 . . . . . . . . . Parts Damaged . | . . . . . . . . . . . . . . . Bothacking | -11 -10 -10 -10 -9 -8 -8 -8 -7 -7 -7 -7 -7 -7 -6 ------------ Run | Yrd Mat Min Exi Min Mat Gar Mat Fac Was Fac Low Low Zio Pro Used RIF Installer 1 | . . . . . . 1 . . . . . . . . Robots Hacked 9 | . . . . . . . . 3 3 2 . . . 1 Non-combat 4 | . . . . . . . . 2 . 2 . . . . Combat 5 | . . . . . . . . 1 3 . . . . 1 Robot Hacks Applied 14 | . . . . . . . . 5 6 3 . . . . no_distress 1 | . . . . . . . . . . 1 . . . . find_chute 1 | . . . . . . . . 1 . . . . . . find_fabricator 1 | . . . . . . . . . . 1 . . . . purge_threat 2 | . . . . . . . . 2 . . . . . . find_terminals 1 | . . . . . . . . . . 1 . . . . ignore_targets 6 | . . . . . . . . . 6 . . . . . formatsys_low 1 | . . . . . . . . 1 . . . . . . formatsys_high 1 | . . . . . . . . 1 . . . . . . Relay Couplers Released 13 | . . . . . . . . 10 . 3 . . . . Machine Destruction 3 | . . . . . . . . 2 . 1 . . . . Programmers 10 | . . . . . . . . 8 . 2 . . . . Attached 3 | . . . . . . . . 2 1 . . . . . Fabnet Peak Effective % 3 | . . . . . . . . . . . . . . 3 Autooverrided 1 | . . . . . . . . . . . . . . 1 Robots Rewired 3 | . . . . . . 3 . . . . . . . . Allies Hacked 8 | . . . . . . . . 4 3 1 . . . . Hacks Repelled 1 | . . . . . . . . . . 1 . . . . Allies | -11 -10 -10 -10 -9 -8 -8 -8 -7 -7 -7 -7 -7 -7 -6 -------- Run | Yrd Mat Min Exi Min Mat Gar Mat Fac Was Fac Low Low Zio Pro Total Allies 43 | . . . . 1 . 3 . 31 5 1 . 1 . 1 Largest Group 14 | . . . . 1 1 3 . 13 14 13 1 . . . Highest-Rated Group 749 | . . . . 31 31 15 . 415 749 734 37 . . . Highest-Rated Ally 141 | . . . . 31 31 5 . 37 141 141 37 . . . Total Orders 19 | . . . . . . 14 . 3 . 2 . . . . STAY 3 | . . . . . . . . 2 . 1 . . . . FOLLOW 2 | . . . . . . . . 1 . 1 . . . . EXPLORE 1 | . . . . . . 1 . . . . . . . . RETURN 13 | . . . . . . 13 . . . . . . . . Ally Attacks 619 | . . . . . 29 323 . 89 110 62 6 . . . Total Damage 13089 | . . . . . 292 6438 . 2423 2014 1813 109 . . . Kills 92 | . . . . . 5 50 . 20 3 12 2 . . . Allies Corrupted 1 | . . . . . . . . 1 . . . . . . Allies Melted 1 | . . . . . . . . 1 . . . . . . Intel | -11 -10 -10 -10 -9 -8 -8 -8 -7 -7 -7 -7 -7 -7 -6 ------- Run | Yrd Mat Min Exi Min Mat Gar Mat Fac Was Fac Low Low Zio Pro Robot Analysis Total 2 | . . . . . . . . 2 . . . . . . Derelict Logs Recovered 2 | . . . . . . . . . . . . . 1 1 Drone Launches 60 | . . . . . . 60 . . . . . . . . Drone Recoveries 30 | . . . . . . 30 . . . . . . . . Exploration | -11 -10 -10 -10 -9 -8 -8 -8 -7 -7 -7 -7 -7 -7 -6 ------------- Run | Yrd Mat Min Exi Min Mat Gar Mat Fac Was Fac Low Low Zio Pro Turns Passed 12353 | 117 1256 633 306 229 1311 1499 273 4748 185 437 909 300 71 79 Spaces Moved 7345 | 52 596 350 222 192 818 704 128 2792 110 340 413 370 142 116 Core 543 | 26 . . . . . . . . . . . 324 142 51 Treads 1290 | 26 519 350 116 . . . . . . . 233 46 . . Legs 15 | . . . . . . . . . . . 15 . . . Wheels 1910 | . 77 . 106 192 818 454 . 263 . . . . . . Hover 3522 | . . . . . . 250 128 2529 110 340 165 . . . Flight 65 | . . . . . . . . . . . . . . 65 Fastest Speed 35 | 50 95 160 105 105 100 56 176 52 52 112 112 50 50 35 Average Speed 136 | 140 152 160 133 105 106 178 176 139 98 112 204 73 50 42 Slowest Speed 420 | 250 160 160 160 105 130 230 176 420 112 116 320 320 50 100 Overloaded Moves . | . . . . . . . . . . . . . . . Propulsion Burnouts . | . . . . . . . . . . . . . . . Robots Hopped . | . . . . . . . . . . . . . . . Cave-ins Triggered 1 | . . . . . . . . 1 . . . . . . Exploration Rate (%) 48 | 4 83 67 61 49 58 73 23 66 74 11 55 61 14 25 Regions Visited 14 Branch Regions 7 Pre-discovered Areas 3 | . . 1 1 . 1 . . . . . . . . . Known Exits Taken 1 | . . . . . 1 . . . . . . . . . Unknown Exits Taken 10 | 1 1 1 1 1 . . 1 . . 1 1 1 1 . Scrap Searched 6 | . . 1 . 1 . . . . . . . 4 . . Spaces Dug 47 | . . . . . 5 7 4 31 . . . . . . Terrain Destroyed 208 | . 17 18 . 30 75 7 4 55 . . 1 1 . . Melee 47 | . . . . . 5 7 4 31 . . . . . . Projectile 3 | . . . . . . . . 1 . . 1 1 . . AOE 158 | . 17 18 . 30 70 . . 23 . . . . . . Terrain Rammed . | . . . . . . . . . . . . . . . Walls Destroyed . | . . . . . . . . . . . . . . . Machines Disabled . | . . . . . . . . . . . . . . . Actions | -11 -10 -10 -10 -9 -8 -8 -8 -7 -7 -7 -7 -7 -7 -6 --------- Run | Yrd Mat Min Exi Min Mat Gar Mat Fac Was Fac Low Low Zio Pro Total 9007 | 81 786 390 231 215 1089 893 164 3478 184 385 447 387 141 136 Wait 895 | 2 83 18 . 20 140 40 30 447 63 31 5 4 . 12 Move 7332 | 51 595 349 221 191 818 702 127 2792 109 339 412 369 141 116 Hop . | . . . . . . . . . . . . . . . Pick Up 67 | 12 8 1 1 . 9 16 . 16 2 1 1 . . . Fast Attach 54 | 3 1 . . . 5 9 . 29 . 1 2 3 . 1 Attach 41 | 4 2 . . . 5 5 . 15 2 3 3 1 . 1 Detach 7 | . . . . . . 1 . 5 . . . 1 . . Swap 64 | 1 9 1 4 . 12 2 . 30 1 . 3 . . 1 Drop 57 | 1 6 . 5 . 5 17 . 20 . . . 3 . . Fire 262 | 7 77 17 . 4 76 8 . 42 7 5 13 6 . . Melee 137 | . . . . . 19 27 7 66 . 5 8 . . 5 Ram . | . . . . . . . . . . . . . . . Kick . | . . . . . . . . . . . . . . . Crush 9 | . 5 4 . . . . . . . . . . . . Escape Stasis 38 | . . . . . . 22 . 16 . . . . . . Rewire 44 | . . . . . . 44 . . . . . . . . Trap . | . . . . . . . . . . . . . . . Miscellaneous . | . . . . . . . . . . . . . . . Route ------- -11/Scrapyard -10/Materials (discovered 4 exits: [*Mat x3] / [*Min]) -10/Mines (discovered 2 exits: [*Mat] / *Exi) -10/Exiles -9/Mines -8/Materials (discovered 2 exits: *Fac / Gar) -8/Garrison (discovered 3 exits: *Mat x3) -8/Materials -7/Factory (discovered 7 exits: *Fac x4 / [*Sto] / [*Low x2]) -7/Waste -7/Factory -7/Lower Caves -7/Lower Caves (discovered 2 exits: *Fac / [*Zio]) -7/Zion -6/Proximity Caves (discovered 1 exit: Fac) History --------- Turn | Location | Event 20 | -11/Scrapyard | Discovered new exit (range 16) 118 | -11/Scrapyard | Entered Materials 300 | -10/Materials | Build established: Mutant 462 | -10/Materials | Discovered new exit (range 10) 798 | -10/Materials | Discovered new exit (range 8) 1175 | -10/Materials | Discovered new exit (range 5) 1338 | -10/Materials | Discovered new exit (range 8) 1374 | -10/Materials | Entered Mines 1478 | -10/Mines | YI-UF0 nonchalantly dropped a Grenade Launcher on the ground 1538 | -10/Mines | Learned location of Storage (-7) 1830 | -10/Mines | Discovered new exit (range 9) 2000 | -10/Mines | Deemed a non-threat by the Exiles lab entrance 2000 | -10/Mines | Discovered new exit (range 5) 2007 | -10/Mines | Entered Exiles 2046 | -10/Exiles | Met 8R-AWN 2073 | -10/Exiles | Met EX-HEX 2126 | -10/Exiles | Met EX-BIN 2148 | -10/Exiles | Aligned with FarCom system 2150 | -10/Exiles | Given EX-Vault access code 2187 | -10/Exiles | Opened EX-Vault 2206 | -10/Exiles | Found Army-in-a-Box 2228 | -10/Exiles | Warned to stay clear of 0b10 Research branches 2258 | -10/Exiles | Met EX-DEC 2262 | -10/Exiles | Learned location of Zion (-7) 2299 | -10/Exiles | Discovered new exit (range 14) 2313 | -10/Exiles | Left Exiles lab with Army-in-a-Box 2313 | -10/Exiles | Entered Mines 2314 | -9/Mines | Met a Derelict bent on vengeance 2525 | -9/Mines | Escorted by a lone wolf Derelict 2528 | -9/Mines | Discovered new exit (range 7) 2542 | -9/Mines | Entered Materials 2542 | -8/Materials | Accompanied by 1 ally 2542 | -8/Materials | Evolved 4 slots: Utility x4 2609 | -8/Materials | Build established: Skirmisher 2817 | -8/Materials | Repaired Beam Rifle 2942 | -8/Materials | Discovered new exit (range 15) 3114 | -8/Materials | Build established: Hacker-Skirmisher 3604 | -8/Materials | Core integrity fell below 50% 3853 | -8/Materials | Identified exit to Garrison 3853 | -8/Materials | Entered Garrison 3931 | -8/Garrison | Triggered checkpoint 4105 | -8/Garrison | Triggered checkpoint 4115 | -8/Garrison | Triggered checkpoint 4168 | -8/Garrison | Lost 7 allies 4173 | -8/Garrison | Triggered checkpoint 4188 | -8/Garrison | Build established: Mutant 4211 | -8/Garrison | Triggered checkpoint 4278 | -8/Garrison | Lost 5 allies 4299 | -8/Garrison | Triggered checkpoint 4370 | -8/Garrison | Discovered new exit (range 8) 4391 | -8/Garrison | Triggered checkpoint 4397 | -8/Garrison | Attempted to access garrison exit controls, blocked by remote lockdown 4433 | -8/Garrison | Discovered new exit (range 7) 4437 | -8/Garrison | Lost 4 allies 4576 | -8/Garrison | Spotted B-75 Beast 4578 | -8/Garrison | Spotted B-75 Beast 4594 | -8/Garrison | Allies destroyed B-75 Beast 4610 | -8/Garrison | Allies destroyed B-75 Beast 4639 | -8/Garrison | Lost 9 allies 4676 | -8/Garrison | Discovered new exit (range 26) 4859 | -8/Garrison | Triggered checkpoint 4921 | -8/Garrison | Lost 4 allies 4929 | -8/Garrison | Build established: Scavenger-Mutant 4937 | -8/Garrison | Core integrity fell below 20% 4990 | -8/Garrison | Installed Relay Interface Framework 5352 | -8/Garrison | Entered Materials 5615 | -8/Materials | Discovered new exit (range 7) 5625 | -8/Materials | Entered Factory 5625 | -7/Factory | Evolved 2 slots: Propulsion x1, Utility x1 5735 | -7/Factory | Fabricated Y-45 Defender? 6074 | -7/Factory | Lost 3 parts (1n2u) 6230 | -7/Factory | Crushed by falling debris 6268 | -7/Factory | Lost 3 parts (1n1u1w) 6477 | -7/Factory | Discovered new exit (range 7) 6495 | -7/Factory | Discovered new exit (range 5) 6539 | -7/Factory | Build established: Mutant 6684 | -7/Factory | Discovered new exit (range 5) 6848 | -7/Factory | Build established: Scavenger-Mutant 6926 | -7/Factory | Fabricated Y-45 Defender (x2) 6964 | -7/Factory | Fabricated Y-45 Defender (x2) 7050 | -7/Factory | Lost 3 allies 7081 | -7/Factory | Fabricated Y-45 Defender (x2) 7115 | -7/Factory | Fabricated Y-45 Defender (x2) 7154 | -7/Factory | Fabricated Y-45 Defender (x2) 7331 | -7/Factory | Discovered new exit (range 15) 7506 | -7/Factory | Discovered new exit (range 15) 7832 | -7/Factory | Discovered new exit (range 14) 8264 | -7/Factory | Discovered new exit (range 7) 8547 | -7/Factory | Fabricated Y-45 Defender? 8822 | -7/Factory | Repaired Med. Reactive Plating? 8923 | -7/Factory | Fabricated Y-45 Defender? 9012 | -7/Factory | Hacking Suite fried by hacking feedback 9293 | -7/Factory | Lost 3 allies 9536 | -7/Factory | Build established: Hacker-Mutant 9545 | -7/Factory | Fabricated P-60 Hacker (x2) 9613 | -7/Factory | Fabricated P-60 Hacker? 9688 | -7/Factory | Fabricated P-60 Hacker? 9763 | -7/Factory | Fabricated P-60 Hacker? 9842 | -7/Factory | Fabricated P-60 Hacker? 9910 | -7/Factory | Build established: Commander-Mutant 10373 | -7/Factory | Sucked down chute 10373 | -7/Factory | Entered Waste 10373 | -7/Waste | Met up with 1 ally sucked down the chute earlier 10374 | -7/Waste | Met a frightened Derelict 10383 | -7/Waste | Spotted C-40 Crusher 10388 | -7/Waste | EMP discharged 10390 | -7/Waste | Spotted C-40 Crusher 10408 | -7/Waste | Spotted C-40 Crusher 10418 | -7/Waste | Spotted C-40 Crusher 10422 | -7/Waste | Spotted C-40 Crusher 10423 | -7/Waste | Hacker 4l assimilated hostile C-40 Crusher 10429 | -7/Waste | Spotted C-40 Crusher 10431 | -7/Waste | Hacker 4l assimilated hostile C-40 Crusher 10438 | -7/Waste | Allies destroyed C-40 Crusher 10472 | -7/Waste | Discovered new exit (range 16) 10488 | -7/Waste | EMP discharged 10488 | -7/Waste | System corruption reached 10% 10558 | -7/Waste | Entered Factory 10558 | -7/Factory | Accompanied by 12 allies 10573 | -7/Factory | 12 allies followed down the chute 10631 | -7/Factory | Identified exit to DSF 10929 | -7/Factory | Hacker 4q assimilated hostile Y-54 Guardian 10947 | -7/Factory | Discovered new exit (range 15) 10966 | -7/Factory | Garrison activated, responded to threat 10977 | -7/Factory | P-70 Sage assimilated allied Guardian 4a 10995 | -7/Factory | Entered Lower Caves 10995 | -7/Lower Caves | Accompanied by 1 ally 11018 | -7/Lower Caves | Lost 6 allies 11075 | -7/Lower Caves | Build established: Hacker-Mutant 11243 | -7/Lower Caves | Attracted the attention of an 0b10 checkpoint 11252 | -7/Lower Caves | Core integrity fell below 50% 11869 | -7/Lower Caves | Discovered new exit (range 12) 11904 | -7/Lower Caves | Entered another Lower Caves area 11935 | -7/Lower Caves | Discovered new exit (range 5) 12201 | -7/Lower Caves | Discovered new exit (range 8) 12204 | -7/Lower Caves | Attracted the attention of an 0b10 checkpoint 12204 | -7/Lower Caves | Entered Zion 12214 | -7/Zion | Learned location of 1 exit from Proximity Caves 12223 | -7/Zion | Discovered new exit (range 15) 12240 | -7/Zion | System corruption cleaned by Quarantine Array 12275 | -7/Zion | Entered Proximity Caves 12276 | -6/Proximity Caves | Identified exit to Factory 12312 | -6/Proximity Caves | Core integrity fell below 20% 12354 | -6/Proximity Caves | Destroyed by S-27 Virus with Autogun Last Messages --------------- LOCATION=UNKNOWN GOAL=ESCAPE Loading 1 Proximity Caves exit... 12283_ Acquired derelict log, extracted data. Data stored: Upper Caves entrances (x1). 12314_ S-27 Virus destroyed. 12317_ Hacking Suite destroyed. 12320_ S-27 Virus destroyed. 12323_ Unknown Flight Unit fries itself beyond repair. 12323_ Acquired 15 matter. 12324_ S-27 Virus destroyed. 12326_ Unknown Flight Unit fries itself beyond repair. 12327_ Great Axe destroyed. 12328_ Imp. Heat Sink destroyed. 12330_ Acquired Unknown Flight Unit. 12330_ Identified VTOL Module. 12331_ Acquired 10 matter. 12332_ VTOL Module fries itself beyond repair. 12332_ Lgt. Nuclear Core fries itself beyond repair. 12336_ System Shield destroyed. Map ----- +----------------------------------------------------+ | ?????????????????????????????????????????????????? | | ?????????????????????????????????????????????????? | | ?????????????????????????????????????????????????? | | ?????????????????????????????????????????????????? | | #????????????????????????????????????????????????? | | ###??????????????????????????????????????????????? | | ###????????????????????????????????????????????? | | ##???????????????????????????????????????????? | | #???????????????????????????????????????????? | | ##??????????????????????????????????????????? | | #??????????????????????????????????????????? | | #??????????????????????????????????????????? | | ##?????????????????????????????????????????? | | #?????????????????????????????????????????? | | ##?????????????????????????????????????????? | | #######??????????????????????????????????????? | | ##?## ####???????????????????????????????????? | | #??# ##??????????????????????????????????? | | #??# #??????????????????????????????????? | | ##??# #??###??????????????????????????????? | | ##### ###?## ##?????????????????????????????? | | ## ###???# ##?###????????????????????????? | | #?????# ### ##???????????????????????? | | ##???## #???????????????????????? | | ##### ## #????????????????????? | | s @ #????????????????????? | | #??????????????????? | | ## ### ???????????????? | | ####?# #????????????? | | ????# ### #### #????????????? | | ??? ##?## #?????#????????????? | | ?? ##???## #??????????????????? | | ##?????# #?????????????????? | | ## #??????# ### #?????????????????? | | ###########???????## ##??####?????????????????? | | ???????????????????######????????????????????????? | | ?????????????????????????????????????????????????? | | ?????????????????????????????????????????????????? | | ?????????????????????????????????????????????????? | | ?????????????????????????????????????????????????? | | ?????????????????????????????????????????????????? | | ?????????????????????????????????????????????????? | | ?????????????????????????????????????????????????? | | ?????????????????????????????????????????????????? | | ?????????????????????????????????????????????????? | | ?????????????????????????????????????????????????? | | ?????????????????????????????????????????????????? | | ?????????????????????????????????????????????????? | | ?????????????????????????????????????????????????? | | ?????????????????????????????????????????????????? | +----------------------------------------------------+ Best States ------------- Heat Dissipation 62 Energy Generation 16 Energy Capacity 290 Matter Stores 300 Matter Capacity 300 Sight Range 20 Terrain Scan Range 16 Terrain Scan Density 10 Jamming Range 12 Armor Coverage 225 Resistance: KI 30 Propulsion Shielding 66 Melee Speed Boost 20 Evasion (%) 63 Recoil Reduction 2 Offensive Hacking 30 Defensive Hacking 30 Relay Coupler Types 1 Relay Coupler Value 22 Authchip Count 13 Item Schematics ----------------- System Shield | -8/Materials | Scanalyzed Imp. Terrain Scan Processor | -8/Materials | Extracted Biomechanical Wings | -7/Factory | Hacked Robot Schematics ------------------ O-24 Administrator | -8/Materials | Hacked Y-45 Defender | -8/Materials | Hacked G-47 Trooper | -7/Factory | Hacked P-60 Hacker | -7/Factory | Hacked M-28 Smith | -7/Factory | Hacked Y-54 Guardian | -7/Factory | Hacked Fabricated ------------ Y-45 Defender | x2 | -7/Factory | Authchip Y-45 Defender | x2 | -7/Factory | Authchip Y-45 Defender | x2 | -7/Factory | Authchip Y-45 Defender | x2 | -7/Factory | Authchip Y-45 Defender | x2 | -7/Factory | Authchip Y-45 Defender | x2 | -7/Factory | Authchip Y-45 Defender | x2 | -7/Factory | Authchip Y-45 Defender | x2 | -7/Factory | Authchip P-60 Hacker | x2 | -7/Factory | Authchip P-60 Hacker | x2 | -7/Factory | Authchip P-60 Hacker | x2 | -7/Factory | Authchip P-60 Hacker | x2 | -7/Factory | Authchip P-60 Hacker | x2 | -7/Factory | Authchip Alien Tech Used ----------------- None Achievements -------------- None Challenges ------------ None Game ------ Seed ProcessingMachineLeg Manual? 0 Play Time 02:18:35 Cumulative 416.6 hours Start 2024.05.28 @ 21:23:26 End 2024.05.28 @ 23:45:05 Sessions 1 Manual Loads 0 Difficulty Rogue Special Mode None Game No. 262 Rogue 259 Adventurer 3 Explorer 0 Win Type - Total 7 Types 6/0/1/0/0/0/0/0/0 Lore% 68 Gallery% 77 Achievement% 66 Wizard Run 0 Options --------- Layout 0 ASCII 0 Keyboard 0 Movement Numpad Keybinds 0 Fullscreen 1 Font 18/SmallcapsGlow Map View 76x50 Zoom Use 0% Tactical HUD 1 Map Filters NONE Filters NONE Steam 1 RUN: 7c25f9a3-bbbd-45bf-8d00-c8a3cdb137c3